Workbook

Sheet Input
B5: Wat is voordeliger voor mij als ZZP-er?
C7: Vul de lichtblauwe cellen in om te berekenen wat voor jou de voordeligste optie is.
C8: Klik daarna op de knop "Start" om de berekening te starten.
C10: Gegevens auto
C13: Cataloguswaarde in euro's incl BTW/BPM | E13: € 50,000.00
C14: Leaseprijs per maand in euro's incl. BTW | E14: € 600.00
C15: Brandstofverbruik km/per liter 1 op | E15: 1
C16: Brandstofprijs in euro's per liter | E16: € 1.85
C18: Gegevens privé
C21: Zakelijke kilometers per jaar (aantal) | E21: 30,000
C22: Privé kilometers per jaar (aantal) | E22: 10,000
C23: Netto km-vergoeding per km in eurocenten | E23: € 0.19
C24: IB-tarief | E24: 50.00%
C25: Bijtellings % zakelijke auto | E25: 22%

Sheet Output
B5: Wat is voordeliger voor mij als ZZP-er?
D8: Uitkomst | E8: =IF(G25-G39>-1,"Privé leasen","Zakelijk leasen") -> Zakelijk leasen
D9: Verschil op jaarbasis | E9: =IF((G25-G39)<0,(G25-G39)*-1,G25-G39) -> € 33,314
D10: Besparing na 5 jaar | E10: =E9*5 -> € 166,572
C13: Berekening op jaarbasis
C15: Zakelijk
E17: Bruto | F17: Btw | G17: Netto
E18: € | F18: € | G18: €
C19: Leasebedrag * | E19: =12*Input!E14 -> 7,200 | F19: =E19-E19/117.5*100 -> 1,072 | G19: =E19-F19 -> 6,128
C20: Brandstofkosten (zakelijk en privé) | E20: =((Input!E21+Input!E22)/Input!E15)*Input!E16 -> 74,000 | F20: =21/121*E20 -> 12,843 | G20: =E20-F20 -> 61,157
C21: BTW privégebruik 2,7% | E21: =0.027*Input!E13 -> 1,350 | G21: =E21 -> 1,350
C22: Minder IB i.v.m. aftrekbaarheid kosten | G22: =-Input!E24*(G21+G20+G19) -> -34,317
C23: Bijtelling Inkomstenbelasting | E23: =IF(Input!E22<500,0,IF(Input!E13<=50000,Input!E13*Input!E24*Input!E25,IF(AND(Input!E13>50000,Input!E25=12%),(50000*Input!E25*Input!E24)+((Input!E13-50000)*22%*Input!E24),Input!E13*22%*Input!E24))) -> 5,500 | G23: =E23 -> 5,500
C25: Kosten zakelijk leasen | G25: =SUM(G19:G23) -> 39,817
C27: Privé
F29: Totaal | G29: Netto
F30: € | G30: €
C31: Leasebedrag | F31: =Input!E14*12 -> 7,200 | G31: =F31 -> 7,200
C32: Brandstofkosten zakelijke kilometers | F32: =(Input!E21/Input!E15)*Input!E16 -> 55,500 | G32: =F32 -> 55,500
C33: Brandstofkosten privé kilometers | F33: =(Input!E22/Input!E15)*Input!E16 -> 18,500 | G33: =F33 -> 18,500
C34: Declareren zakelijke kilometers | F34: =-Input!E21*Input!E23 -> -5,700
C35: Minder IB door declareren zakelijke kilometers | F35: =Input!E24*F34 -> -2,850 | G35: =F35 -> -2,850
C36: Btw retour leasebedrag/brandstofkosten | F36: =-(Input!E21/(Input!E21+Input!E22))*(F31*17.5/117.5)+(-F32*21/121) -> -10,436 | G36: =F36 -> -10,436
C37: Meer IB i.v.m. terugvragen BTW | F37: =-Input!E24*F36 -> 5,218 | G37: =F37 -> 5,218
C39: Kosten privé leasen | G39: =SUM(G31:G37) -> 73,132
C41: IB = Inkomstenbelasting
C42: * Uitgangspunt: van het leasebedrag is 17,5% BTW terug te vragen (Deel is vrij
C43: van BTW: BPM, Verzekering, MRB).
